{"text_format":"1","workbook":"xlsx","n_sheets":4,"sheets":["Sheet1","Data_Tech","база","Лист1"],"not_rendered":{"charts":0,"images":0,"macros":1,"external_links":0,"defined_names":0,"comments":0,"pivot_tables":0},"unopened":[],"bounds":{"document_bytes":16777216,"sheet_cells":100000,"rows_first":2000,"rows_last":500,"rows_between":2000,"halvings":0,"cell_chars":16384,"cell_head_chars":4096},"cells_cut":0,"cells_raw":0,"read":"whole","date_system":"1900"}

{"sheet":"Sheet1","index":0,"n_rows":63,"n_cols":27,"rows_kept":63,"cut":false,"hidden":true,"merged":[[0,6,0,11],[21,6,21,11],[32,6,32,11]]}
[null,null,null,null,null,null,"технологическая карта",null,null,null,null,null,null,"изд",1,null,null,"партия","4-21"]
[null,null,null,null,null,null,null,null,null,"август",null,2021]
[null,"коэф","Ф. И. О.","р/р",2,3,4,5,6,9,10,11,12,13,16,17,18,19,20,23,24,25,26,27,30,31]
[null,null,"работник6","3/16",null,null,null,null,1,null,null,1,4,3.2,2,1.2,null,null,null,null,null,null,null,null,null,null,{"$f":"SUM(E4:Z4)","v":12.399999999999999}]
[null,null,"работник7",null,null,null,null,null,null,null,7.2,null,null,null,null,null,null,null,null,null,null,null,null,null,null,null,7.2]
[null,null,"работник1",null,6.7,null,null,null,4.7,null,null,null,null,null,6.7,2,null,null,null,null,null,null,null,null,null,null,20.100000000000001]
[null,null,"работник8",null,7.2,null,7.2,5,4.2,7.2,7.2,6.2,null,null,null,null,null,null,null,null,null,null,null,null,null,null,44.2]
[null,null,"работник9",null,7.2,7.2,null,null,null,null,null,null,null,null,null,null,null,null,null,null,null,null,null,null,null,null,14.4]
[null,null,"работник3",null,null,2.6,null,7.2,null,null,7.2,null,null,null,null,null,null,null,null,null,null,null,null,null,null,null,17]
[null,null,"работник10",null,null,null,null,7.2,7.2,4,4,2,null,null,null,null,null,null,null,null,null,null,null,null,null,null,24.4]
[null,null,"работник10",null,null,null,null,null,null,null,null,7.2,7.2,7.2,7.2,null,null,null,null,null,null,null,null,null,null,null,28.8]
[null,null,"работник5",null,null,null,null,null,null,null,4,null,4,null,null,null,null,null,null,null,null,null,null,null,null,null,8]
[null,null,"работник11",null,null,null,null,null,null,7.2,7.2,null,7.2,null,null,null,null,null,null,null,null,null,null,null,null,null,21.6]
[null,null,"работник2",null,null,null,null,2.2000000000000002,null,null,null,null,null,null,null,null,null,null,null,null,null,null,null,null,null,null,2.2000000000000002]
[null,null,"работник4",null,7.2,7.2,null,null,null,null,null,null,null,null,null,null,null,null,null,null,null,null,null,null,null,null,14.4]
[]
[null,1.1000000000000001,"работник5","3/16",7.2,null,null,null,null,null,null,null,null,null,null,null,null,null,null,null,null,null,null,null,null,null,7.2]
[null,1.1000000000000001,"работник2",null,null,null,2,null,null,null,null,null,null,null,null,null,null,null,null,null,null,null,null,null,null,null,2]
[null,null,null,null,{"$f":"SUM(E4:E18)","v":35.5},17,9.1999999999999993,21.599999999999998,17.100000000000001,18.399999999999999,36.800000000000004,16.399999999999999,22.4,10.4,15.899999999999999,3.2,0,0,0,0,0,0,0,0,0,0,223.9]
[]
[]
[null,null,null,null,null,null,"технологическая карта",null,null,null,null,null,null,"изд",2,null,null,"партия","33-21"]
[null,null,null,null,null,null,null,null,null,"август",null,2021]
[null,"коэф","Ф. И. О.","р/р",2,3,4,5,6,9,10,11,12,13,16,17,18,19,20,23,24,25,26,27,30,31]
[null,null,"работник6","3/16",null,null,null,null,null,null,null,null,2,4,null,null,null,null,null,null,null,null,null,null,null,null,{"$f":"SUM(E25:Z25)","v":6}]
[null,null,"работник10",null,null,null,null,null,null,null,null,null,null,7.2,7.2,null,null,null,null,null,null,null,null,null,null,null,14.4]
[null,null,"работник11",null,null,null,null,null,null,null,null,7.2,null,null,null,null,null,null,null,null,null,null,null,null,null,null,7.2]
[null,null,"работник3",null,3.2,4.5999999999999996,2.8,null,null,null,null,null,null,null,null,null,null,null,null,null,null,null,null,null,null,null,{"$f":"SUM(E28:Z28)","v":10.6}]
[null,null,"работник8",null,null,null,null,null,null,null,null,null,null,null,null,null,null,null,7.2,null,null,null,null,null,null,null,7.2]
[null,null,"работник9",null,null,null,7.2,7.2,7.2,7.2,7.2,null,null,null,null,null,null,null,null,null,null,null,null,null,null,null,36]
[null,null,null,null,{"$f":"SUM(E25:E30)","v":3.2},4.5999999999999996,10,7.2,7.2,7.2,7.2,7.2,2,11.2,7.2,0,0,0,7.2,0,0,0,0,0,0,0,{"$f":"SUM(AA25:AA30)","v":81.400000000000006}]
[]
[null,null,null,null,null,null,"технологическая карта",null,null,null,null,null,null,"изд",3,null,null,"партия","27-21"]
[null,null,null,null,null,null,null,null,null,"август",null,2021]
[null,"коэф","Ф. И. О.","р/р",2,3,4,5,6,9,10,11,12,13,16,17,18,19,20,23,24,25,26,27,30,31]
[null,null,"работник3","2/4",null,null,null,null,2.8,null,null,null,null,null,null,null,null,null,null,null,null,null,null,null,null,null,{"$f":"SUM(E36:Z36)","v":2.8}]
[null,null,"работник7",null,null,null,null,null,null,null,null,null,null,null,null,null,7.2,null,null,null,null,null,null,null,null,null,{"$f":"SUM(E37:Z37)","v":7.2}]
[]
[null,null,"работник7","3/4",3.2,null,null,null,null,null,null,null,null,null,null,null,null,null,null,null,null,null,null,null,null,null,{"$f":"SUM(E39:Z39)","v":3.2}]
[null,null,"работник12",null,4,4,4,4,null,null,null,null,null,7,null,null,null,null,null,null,null,null,null,null,null,null,{"$f":"SUM(E40:Z40)","v":23}]
[null,null,"работник2",null,null,null,null,null,null,4.2,null,null,null,null,null,null,2.2000000000000002,null,7.2,null,7.2,null,3.6,null,null,null,{"$f":"SUM(E41:Z41)","v":24.400000000000002}]
[null,null,"работник13",null,null,null,null,null,null,null,null,null,null,null,null,1.2,null,null,null,null,null,null,null,null,null,null,1.2]
[]
[null,null,"работник2","3/16",null,null,null,null,null,null,null,null,null,null,null,null,null,null,null,1.8,null,null,3.6,7.2,null,null,12.600000000000001]
[null,null,"работник1",null,null,null,null,null,null,null,null,null,null,null,null,4.7,6.7,2,null,null,3,null,null,5.7,6.7,6.7,35.5]
[null,null,"работник10",null,7.2,7.2,7.2,null,null,null,null,null,null,null,null,7.2,7.2,null,null,null,null,null,null,null,null,null,36]
[null,null,"работник11",null,null,7.2,null,7.2,7.2,null,null,null,null,null,7.2,7.2,null,null,null,null,7.2,7.2,null,null,null,null,50.400000000000006]
[null,null,"работник9",null,null,null,null,null,null,null,null,7.2,7.2,7.2,7.2,7.2,7.2,7.2,7.2,null,null,null,null,null,null,null,57.600000000000009]
[null,null,"работник3",null,4,null,null,null,null,null,null,null,null,null,null,null,null,null,null,null,null,null,null,null,null,null,4]
[null,null,"работник12",null,3,3,3,3,null,null,3,3,null,null,null,null,null,null,null,null,null,null,null,null,null,null,18]
[null,null,"работник5",null,null,null,null,null,null,null,2.2000000000000002,null,2.2000000000000002,null,4.2,null,null,null,3.2,null,null,null,null,null,null,null,11.8]
[null,null,"работник13",null,null,null,null,null,null,null,null,null,null,7.2,7.2,6,null,null,null,null,null,null,null,null,null,null,20.399999999999999]
[null,null,"работник14",null,null,null,null,null,null,null,null,null,null,null,null,null,null,6.7,6.7,null,null,null,null,null,null,null,13.4]
[null,null,"работник15",null,7.2,null,null,null,null,null,null,null,null,null,null,null,null,null,null,null,null,null,null,null,null,null,7.2]
[null,null,"работник6",null,null,7.2,null,7.2,2,null,null,null,null,null,null,null,2,null,null,null,null,null,null,null,null,null,18.399999999999999]
[null,null,"работник4",null,null,null,null,null,null,null,null,null,null,null,null,null,null,null,null,null,null,null,null,null,7.2,7.2,14.4]
[]
[null,1.5,"работник7","4/8",4,7.2,7.2,7.2,7.2,null,null,null,null,null,null,null,null,7.2,7.2,null,null,null,null,null,null,null,47.2]
[]
[null,1.1000000000000001,"работник5","3/16",null,null,null,null,null,4.2,null,4.2,null,null,null,null,null,null,null,null,null,null,null,null,null,null,8.4]
[null,1.1000000000000001,"работник2",null,null,null,5.2,null,null,null,null,null,null,null,null,null,null,null,null,null,null,7.2,null,null,null,null,12.4]
[null,1.1000000000000001,"работник11",null,7.2,null,7.2,null,null,null,null,null,null,null,null,null,null,null,null,null,null,null,null,null,null,null,14.4]
[null,null,null,null,{"$f":"SUM(E36:E62)","v":39.799999999999997},{"$f":"SUM(F36:F62)","v":35.799999999999997},33.799999999999997,28.599999999999998,19.2,8.4,5.2,14.399999999999999,9.4,21.4,25.8,33.5,32.5,23.099999999999998,31.5,1.8,17.399999999999999,14.4,7.2,12.9,13.9,13.9,{"$f":"SUM(AA36:AA62)","v":443.89999999999986}]

{"sheet":"Data_Tech","index":1,"n_rows":33,"n_cols":29,"rows_kept":33,"cut":false,"hidden":false,"merged":[]}
["месяц","год","изд","партия","коэф","Ф. И. О.","р/р","2","3","4","5","6","9","10","11","12","13","16","17","18","19","20","23","24","25","26","27","30","31"]
["Январь","2021",1,"1-21",1,"работник1","3/16",null,"7,2"]
["Январь","2021",2,"1-21",1.5,"работник2","3/16",5]
["Январь","2021",1,"4-21",1,"работник3","2/4","5,2"]
["Январь","2021",1,"1-21",1.1000000000000001,"работник3","3/16","6,7"]
["Январь","2021",2,"1-21",1,"работник4","3/16",null,null,null,null,null,null,"7,2"]
["Январь","2021",2,"1-21",1,"работник4","3/4",null,null,null,"7,2"]
["Январь","2021",1,"1-21",1,"работник8","3/4",null,null,null,null,null,null,null,null,null,null,null,null,null,7]
["Январь","2021",1,"1-21",1,"работник3","2/4",null,null,null,null,2.8]
["Январь","2021",2,"1-21",1,"работник7","2/4",null,null,null,null,null,null,null,null,null,null,null,null,7.2]
["Январь","2022",3,"1-22",1,"работник7","3/4",3.2]
["Январь","2021",1,"1-21",1,"работник12","3/4",4,4,4,4,null,null,null,null,null,7]
["Январь","2021",1,"1-21",1,"работник2","3/4",null,null,null,null,null,4.2,null,null,null,null,null,null,2.2000000000000002,null,7.2,null,7.2,null,3.6]
["Ноябрь","2021",1,"1-21",1,"работник13","3/4",null,null,null,null,null,null,null,null,null,null,null,1.2]
["Январь","2021",1,"1-21",1,"работник2","3/16",null,null,null,null,null,null,null,null,null,null,null,null,null,null,null,1.8,null,null,3.6,7.2]
["Январь","2021",1,"1-21",1,"работник1","3/16",null,null,null,null,null,null,null,null,null,null,null,4.7,6.7,2,null,null,3,null,null,5.7,6.7,6.7]
["Январь","2021",1,"1-21",1,"работник10","3/16",7.2,7.2,7.2,null,null,null,null,null,null,null,null,7.2,7.2]
["Январь","2021",1,"1-21",1,"работник11","3/16",null,7.2,null,7.2,7.2,null,null,null,null,null,7.2,7.2,null,null,null,null,7.2,7.2]
["Январь","2021",1,"1-21",1,"работник9","3/16",null,null,null,null,null,null,null,7.2,7.2,7.2,7.2,7.2,7.2,7.2,7.2]
["Январь","2022",2,"1-22",1.1000000000000001,"работник3","3/16",4]
["Январь","2022",2,"1-22",1.5,"работник12","3/16",3,3,3,3,null,null,3,3]
["Январь","2022",2,"1-22",1,"работник5","3/16",null,null,null,null,null,null,2.2000000000000002,null,2.2000000000000002,null,4.2,null,null,null,3.2]
["Январь","2022",3,"1-22",1,"работник13","3/16",null,null,null,null,null,null,null,null,null,7.2,7.2,6]
["Январь","2022",2,"1-22",1,"работник14","3/16",null,null,null,null,null,null,null,null,null,null,null,null,null,6.7,6.7]
["Январь","2021",2,"1-21",1,"работник15","3/16",7.2]
["Январь","2021",2,"1-21",1,"работник6","3/16",null,7.2,null,7.2,2,null,null,null,null,null,null,null,2]
["Январь","2021",2,"1-21",1,"работник4","3/4",null,null,null,null,null,null,null,null,null,null,null,null,null,null,null,null,null,null,null,null,7.2,7.2]
["Январь","2021",2,"1-21",1.5,"работник7","4/8",4,7.2,7.2,7.2,7.2,null,null,null,null,null,null,null,null,7.2,7.2]
["Январь","2021",2,"1-21",1.1000000000000001,"работник5","3/16",null,null,null,null,null,4.2,null,4.2]
["Январь","2021",1,"1-21",1.1000000000000001,"работник2","3/16",null,null,5.2,null,null,null,null,null,null,null,null,null,null,null,null,null,null,7.2]
["Январь","2022",2,"1-22",1.1000000000000001,"работник11","3/16",7.2,null,7.2]
["Январь","2021",5,"4-21",5,"работник1","3/16",null,null,null,5]
["Январь","2021",6,"4-21",6,"работник1","3/16",null,null,null,null,6]

{"sheet":"база","index":2,"n_rows":16,"n_cols":3,"rows_kept":16,"cut":false,"hidden":true,"merged":[]}
["партия","Ф. И. О.","р/р"]
["4-21","работник1","3/16"]
["33-21","работник2","2/4"]
["27-21","работник3","3/4"]
["1-21","работник4","4/8"]
["2-21","работник5"]
["1-22","работник6"]
[null,"работник7"]
[null,"работник8"]
[null,"работник9"]
[null,"работник10"]
[null,"работник11"]
[null,"работник12"]
[null,"работник13"]
[null,"работник14"]
[null,"работник15"]

{"sheet":"Лист1","index":3,"n_rows":3,"n_cols":26,"rows_kept":3,"cut":false,"hidden":false,"merged":[[0,6,0,11]]}
[null,null,null,null,null,null,"технологическая карта",null,null,null,null,null,null,"изд",1,null,null,"партия","1-21"]
[null,null,null,null,null,null,null,null,null,"Январь",null,2021]
[null,"коэф","Ф. И. О.","р/р",2,3,4,5,6,9,10,11,12,13,16,17,18,19,20,23,24,25,26,27,30,31]